fUSD/lending_fUSD_20250219
["ID","MTS","AMOUNT","RATE_DAILY","PERIOD"]
[353581422,1739933475812,-929.74280957,0.00011099,2]
[353581423,1739933475824,-1292.58359335,0.00011099,2]
[353581424,1739933475835,-3935.49902682,0.00011099,2]
[353581425,1739933475853,-282.22400001,0.00011099,2]
[353581426,1739933475865,-386.4901369,0.00011099,2]
[353581427,1739933475876,-392.53922624,0.00011099,2]
[353581428,1739933475887,-545.755,0.00011099,2]
[353581429,1739933475898,-447.27153168,0.00011099,2]
[353581430,1739933475919,-835.04991627,0.00011099,2]
[353581431,1739933475938,-2517.21603377,0.00011099,2]
[353581432,1739933476074,-512.6900035,0.00011099,2]
[353581433,1739933477108,-500.0,9.999e-05,2]
[353581434,1739933477119,-176.61627957,9.999e-05,2]
[353581435,1739933477128,-491.59906394,9.999e-05,2]
[353581436,1739933477137,-500.0,9.999e-05,2]
[353581437,1739933477147,-8681.3643078,0.00011099,2]
[353581438,1739933477157,-20758.4255859,0.00011099,2]
[353581439,1739933477167,-448.71904344,0.00013258,2]
[353581440,1739933477176,-2209.14656176,0.000136,2]
[353581441,1739933477186,-1110.0,0.00013809,2]
[353581442,1739933477196,-435.24875761,0.00014807,2]
[353581443,1739933477205,-179.41584052,0.00016438,2]
[353581444,1739933477216,-585.93,0.00016438,2]
[353581445,1739933477225,-1795.8,0.00016438,2]
[353581446,1739933477235,-796.48,0.00016438,2]
[353581447,1739933477244,-500.0,0.00016438,2]
[353581448,1739933477254,-576.66005109,0.00016438,2]
[353581449,1739933477264,-500.0,0.00016438,2]
[353581450,1739933477273,-500.0,0.00016438,2]
[353581451,1739933477283,-500.0,0.00016438,2]
[353581452,1739933477292,-2894.65,0.00016438,2]
[353581453,1739933477302,-2384.75,0.00016438,2]
[353581454,1739933477311,-500.0,0.00016438,2]
[353581455,1739933477321,-500.0,0.00016438,2]
[353581456,1739933477331,-140.30958247,0.00016438,2]
[353581457,1739933477350,-359.69041753,0.00016438,2]
[353581458,1739933477360,-667.03,0.00016438,2]
[353581459,1739933477369,-500.0,0.00016438,2]
[353581460,1739933477379,-500.0,0.00016438,2]
[353581461,1739933477388,-500.0,0.00016438,2]
[353581462,1739933477398,-494.98787654,0.00016438,2]
[353581463,1739933477408,-500.0,0.00016438,2]
[353581464,1739933477417,-500.0,0.00016438,2]
[353581465,1739933477427,-500.0,0.00016438,2]
[353581466,1739933477436,-1278.29170593,0.00016438,2]
[353581467,1739933477452,-1985.53890546,0.00016438,2]
[353581468,1739933477464,-432.19494406,0.00016438,2]
[353581469,1739933477475,-678.77337417,0.00016438,2]
[353581471,1739934049174,190.26,8.767e-05,2]
[353581473,1739934091372,3800.0,0.00020602,120]
[353581491,1739934475722,-594.135851,0.00010267,2]
[353581492,1739934475747,-511.68,0.00010319,2]
[353581493,1739934475771,-22894.184149,0.00010352,2]
[353581497,1739934632721,-111.665851,0.00010352,2]
[353581499,1739934632731,-251.9170231,0.00011588,2]
[353581501,1739934632740,-18.4971259,0.00011688,2]
[353581507,1739934632795,-131.5028741,0.00011688,2]
[353581509,1739934632806,-251.91702308,0.00011859,2]
[353581511,1739934632815,-5206.57604169,0.00012026,2]
[353581513,1739934632825,-7458.14333836,0.00012026,2]
[353581515,1739934632834,-150.0,0.00012053,2]
[353581517,1739934632843,-282.1,0.0001209,2]
[353581519,1739934632852,-1966.26,0.00012108,2]
[353581521,1739934632861,-251.91702308,0.00012129,2]
[353581523,1739934632870,-194.65,0.00012176,2]
[353581525,1739934632878,-166.11,0.00012203,2]
[353581527,1739934632888,-11965.74034224,0.00012215,2]
[353581553,1739934633199,-414.75037825,0.00012215,2]
[353581554,1739934633220,-8475.19219163,0.00012215,2]
[353581557,1739934638179,-3044.31708788,0.00012215,2]
[353581558,1739934638189,-514.82219493,0.00012229,2]
[353581559,1739934638198,-1000.0,0.00012257,2]
[353581560,1739934638207,-1944.946338,0.00012329,2]
[353581561,1739934638217,-1944.946338,0.00012329,2]
[353581562,1739934638226,-1944.946338,0.00012329,2]
[353581563,1739934638235,-1944.946338,0.00012329,2]
[353581564,1739934638244,-173.68779,0.00012329,2]
[353581565,1739934638254,-173.68779,0.00012329,2]
[353581566,1739934638263,-173.68779,0.00012329,2]
[353581567,1739934638273,-173.68779,0.00012329,2]
[353581568,1739934638282,-151.0,0.00012329,2]
[353581569,1739934638291,-151.0,0.00012329,2]
[353581570,1739934638301,-151.0,0.00012329,2]
[353581571,1739934638310,-151.0,0.00012329,2]
[353581572,1739934638319,-1944.946338,0.00012329,2]
[353581573,1739934638329,-1180.59325406,0.00012329,2]
[353581574,1739934638346,-764.35308394,0.00012329,2]
[353581575,1739934638356,-1944.946338,0.00012329,2]
[353581576,1739934638366,-1944.946338,0.00012329,2]
[353581577,1739934638376,-173.68779,0.00012329,2]
[353581578,1739934638385,-173.68779,0.00012329,2]
[353581579,1739934638395,-173.68779,0.00012329,2]
[353581580,1739934638404,-173.68779,0.00012329,2]
[353581581,1739934638413,-189.135207,0.00012329,2]
[353581582,1739934638423,-151.0,0.00012329,2]
[353581583,1739934638432,-151.0,0.00012329,2]
[353581584,1739934638442,-157.1395,0.00012329,2]
[353581585,1739934638451,-150.0,0.00012464,2]
[353581586,1739934638464,-1439.9,0.00012485,2]
[353581587,1739934638474,-511.68,0.00012583,2]
[353581588,1739934638483,-1555.79871876,0.00012659,2]
[353581589,1739934638500,-449.85128124,0.00012659,2]
[353581590,1739934638510,-233.10470097,0.0001276,3]
[353581591,1739934638521,-1160.05392459,0.0001276,3]
[353581592,1739934638531,-1944.946338,0.00012761,2]
[353581593,1739934638541,-1944.946338,0.00012761,2]
[353581595,1739934638550,-173.68779,0.00012761,2]
[353581597,1739934638559,-173.68779,0.00012761,2]
[353581598,1739934638569,-266.7769,0.00012899,2]
[353581599,1739934638578,-1308.00867,0.00012899,2]
[353581674,1739934640567,-2576.40783,0.00012899,2]
[353581675,1739934640578,-222.5747,0.000129,2]
[353581676,1739934640588,-7788.1043,0.000129,2]
[353581677,1739934640599,-6623.1649,0.000129,2]
[353581678,1739934640610,-1474.47415299,0.00012938,2]
[353581679,1739934640619,-1944.946338,0.00012999,2]
[353581680,1739934640630,-1944.946338,0.00012999,2]
[353581681,1739934640640,-173.68779,0.00012999,2]
[353581682,1739934640652,-173.68779,0.00012999,2]
[353581683,1739934640662,-1944.946338,0.00013,2]
[353581684,1739934640672,-1944.946338,0.00013,2]
[353581685,1739934640682,-1944.946338,0.00013,2]
[353581686,1739934640692,-1944.946338,0.00013,2]
[353581687,1739934640701,-173.68779,0.00013,2]
[353581688,1739934640710,-173.68779,0.00013,2]
[353581689,1739934640721,-173.68779,0.00013,2]
[353581690,1739934640730,-173.68779,0.00013,2]
[353581691,1739934640741,-550.0,0.00013,2]
[353581692,1739934640750,-817.3373,0.0001318,2]
[353581693,1739934640761,-10461.466,0.0001318,2]
[353581694,1739934640771,-1944.946338,0.00013199,2]
[353581695,1739934640781,-1944.946338,0.00013199,2]
[353581696,1739934640791,-173.68779,0.00013199,2]
[353581697,1739934640802,-173.68779,0.00013199,2]
[353581698,1739934640812,-1944.946338,0.000132,2]
[353581699,1739934640823,-1944.946333,0.000132,2]
[353581700,1739934640833,-173.68779,0.000132,2]
[353581701,1739934640845,-173.687798,0.000132,2]
[353581702,1739934640854,-1205.95962487,0.00013206,2]
[353581703,1739934640995,-259.71783718,0.00013206,2]
[353581704,1739934641007,-1075.66677915,0.00013206,2]
[353581705,1739934641018,-525.3341,0.00013316,2]
[353581706,1739934641028,-432.30486665,0.00013316,2]
[353581719,1739934643897,-962.922,0.00013316,2]
[353581720,1739934643930,-3610.23363335,0.00013316,2]
[353581721,1739934643940,-494.211,0.0001342,2]
[353581722,1739934643949,-569.0,0.0001342,2]
[353581723,1739934643959,-1787.0,0.0001342,2]
[353581724,1739934643969,-784.0,0.0001342,2]
[353581725,1739934643979,-908.0,0.0001342,2]
[353581726,1739934643989,-1266.0,0.0001342,2]
[353581727,1739934643998,-4030.0,0.0001342,2]
[353581728,1739934644008,-202.5859,0.00013475,2]
[353581729,1739934644017,-16637.45695331,0.000135,2]
[353581730,1739934644027,-1461.77709677,0.00013505,2]
[353581731,1739934644036,-3918.0,0.00013578,2]
[353581732,1739934644046,-661.39,0.00013578,2]
[353581733,1739934644055,-150.0,0.00013578,2]
[353581734,1739934644065,-1110.0,0.00013578,2]
[353581735,1739934644075,-1435.94526522,0.000136,2]
[353581736,1739934644085,-1435.94526514,0.000136,2]
[353581737,1739934644094,-129.4876572,0.000136,2]
[353581738,1739934644125,-1306.45760794,0.000136,2]
[353581739,1739934644135,-282.1,0.00013601,2]
[353581740,1739934644144,-1435.94526514,0.00013698,2]
[353581741,1739934644154,-151.0,0.00013699,2]
[353581742,1739934644163,-200.0,0.00013699,2]
[353581743,1739934644173,-169.99,0.00013699,2]
[353581744,1739934644183,-1000.0,0.00013789,2]
[353581745,1739934644192,-491.0,0.00013809,2]
[353581746,1739934644203,-939.5653,0.00013839,2]
[353581747,1739934644212,-1435.94526514,0.00013897,2]
[353581748,1739934644221,-2463.577,0.000139,2]
[353581749,1739934644232,-14588.0716,0.000139,2]
[353581750,1739934644241,-538.9305198,0.00013939,2]
[353581751,1739934644253,-10316.4481802,0.00013939,2]
[353581752,1739934644262,-9925.8536,0.00013939,2]
[353581753,1739934644272,-16637.45695326,0.00013968,2]
[353581754,1739934644281,-948.214672,0.00013971,2]
[353581755,1739934644291,-1393.15862556,0.00013999,5]
[353581756,1739934644300,-2032.57199601,0.00014,2]
[353581764,1739934646277,-3458.55835853,0.00014,2]
[353581765,1739934646330,-2451.05700216,0.00014,2]
[353581766,1739934646385,-23672.4228433,0.00014,2]
[353581767,1739934646395,-500.0,0.00014,2]
[353581768,1739934646404,-19013.49893652,0.00014,2]
[353581769,1739934646440,-1397.97446348,0.00014,2]
[353581770,1739934646450,-530.66553652,0.00014,2]
[353581771,1739934646547,-469.33446348,0.00014,2]
[353581772,1739934646556,-40.04886065,0.00014096,2]
[353581773,1739934646568,-1395.89640449,0.00014096,2]
[353581774,1739934646578,-1435.94526514,0.00014296,2]
[353581775,1739934646588,-16637.45695326,0.00014435,2]
[353581776,1739934646597,-2026.0,0.00014453,2]
[353581777,1739934646607,-1274.0,0.00014453,2]
[353581778,1739934646617,-1435.94526514,0.00014495,2]
[353581779,1739934646626,-368.0,0.000146,2]
[353581780,1739934646636,-659.0,0.000146,2]
[353581781,1739934646646,-1435.94526514,0.00014694,2]
[353581782,1739934646655,-511.68,0.00014847,2]
[353581783,1739934646665,-1435.94526514,0.00014893,2]
[353581784,1739934646674,-16637.45695326,0.00014903,2]
[353581785,1739934646684,-6218.83173577,0.00014996,2]
[353581786,1739934646693,-600.0,0.00015,2]
[353581787,1739934646702,-166.1,0.00015068,2]
[353581788,1739934646712,-1435.94526514,0.00015093,2]
[353581789,1739934646721,-501.0,0.00015096,2]
[353581790,1739934646731,-282.1,0.00015112,2]
[353581791,1739934646741,-6218.83173575,0.00015267,2]
[353581792,1739934646751,-1435.94526514,0.00015292,2]
[353581793,1739934646760,-1000.0,0.00015321,2]
[353581794,1739934646770,-16637.45695326,0.0001537,2]
[353581795,1739934646779,-1435.94526514,0.00015491,2]
[353581796,1739934646789,-190.26,0.00015516,2]
[353581797,1739934646799,-6218.83173575,0.00015538,2]
[353581798,1739934646809,-681.38,0.00015616,2]
[353581799,1739934646819,-151.42,0.00015616,2]
[353581800,1739934646829,-214.47,0.00015616,2]
[353581801,1739934646838,-302.3,0.00015616,2]
[353581802,1739934646849,-150.0,0.00015616,2]
[353581803,1739934646858,-150.0,0.00015616,2]
[353581804,1739934646868,-150.0,0.00015616,2]
[353581805,1739934646878,-881.54,0.0001567,2]
[353581806,1739934646887,-1435.94526514,0.0001569,2]
[353581807,1739934646897,-6218.83173575,0.00015809,2]
[353581808,1739934646906,-16637.45695326,0.00015838,2]
[353581809,1739934646916,-1435.94526514,0.0001589,2]
[353581810,1739934646926,-2000.0,0.00016,2]
[353581811,1739934646934,-268.54264027,0.00016003,2]
[353581812,1739934646943,-236.74313275,0.00016003,2]
[353581813,1739934646953,-207.91462979,0.00016003,2]
[353581814,1739934646964,-3185.764231,0.0001601,2]
[353581815,1739934646973,-1435.94526514,0.00016089,2]
[353581816,1739934646983,-12765.4648994,0.00016138,2]
[353581817,1739934646992,-1000.0,0.00016145,2]
[353581818,1739934647002,-1000.0,0.00016161,2]
[353581819,1739934647012,-150.0,0.00016165,2]
[353581820,1739934647021,-150.0,0.00016169,2]
[353581821,1739934647031,-1000.0,0.00016172,2]
[353581822,1739934647040,-1000.0,0.00016172,2]
[353581823,1739934647049,-1000.0,0.00016174,2]
[353581824,1739934647059,-150.0,0.00016176,2]
[353581825,1739934647069,-150.0,0.0001618,2]
[353581826,1739934647079,-150.0,0.0001618,2]
[353581827,1739934647089,-150.0,0.00016184,2]
[353581828,1739934647098,-150.0,0.00016184,2]
[353581829,1739934647108,-150.0,0.00016184,2]
[353581830,1739934647118,-150.0,0.00016187,2]
[353581831,1739934647127,-317.81338243,0.00016196,2]
[353581832,1739934647137,-150.0,0.00016199,2]
[353581833,1739934647148,-150.0,0.000162,2]
[353581834,1739934647158,-150.0,0.00016203,2]
[353581835,1739934647168,-1000.0,0.00016204,2]
[353581836,1739934647177,-1000.0,0.00016205,2]
[353581837,1739934647187,-150.0,0.00016206,2]
[353581838,1739934647197,-150.0,0.0001621,2]
[353581839,1739934647207,-1000.0,0.0001621,2]
[353581840,1739934647219,-150.0,0.00016213,2]
[353581841,1739934647238,-150.0,0.00016215,2]
[353581842,1739934647250,-306.06,0.00016219,2]
[353581843,1739934647272,-150.88029428,0.0001622,2]
[353581844,1739934647303,-150.0,0.00016221,2]
[353581845,1739934647367,-1000.0,0.00016224,2]
[353581846,1739934647454,-1000.0,0.0001623,2]
[353581847,1739934647541,-1000.0,0.00016235,2]
[353581848,1739934647669,-1000.0,0.00016235,2]
[353581849,1739934647787,-1000.0,0.00016236,2]
[353581850,1739934647906,-150.0,0.00016238,2]
[353581851,1739934648031,-150.0,0.00016238,2]
[353581852,1739934648152,-150.0,0.00016238,2]
[353581853,1739934648271,-150.0,0.00016239,2]
[353581854,1739934648360,-150.0,0.00016239,2]
[353581855,1739934648400,-150.0,0.00016254,2]
[353581856,1739934648411,-150.0,0.00016255,2]
[353581857,1739934648421,-150.0,0.00016258,2]
[353581858,1739934648431,-150.0,0.0001626,2]
[353581859,1739934648441,-150.0,0.00016263,2]
[353581860,1739934648451,-150.0,0.00016268,2]
[353581861,1739934648460,-150.0,0.00016269,2]
[353581862,1739934648472,-150.0,0.00016272,2]
[353581863,1739934648485,-1000.0,0.00016274,2]
[353581864,1739934648494,-150.0,0.00016278,2]
[353581865,1739934648503,-150.0,0.00016278,2]
[353581866,1739934648514,-150.0,0.0001628,2]
[353581867,1739934648524,-150.0,0.00016282,2]
[353581868,1739934648534,-150.0,0.00016283,2]
[353581869,1739934648543,-150.0,0.00016288,2]
[353581870,1739934648556,-1435.94526514,0.00016288,2]
[353581871,1739934648566,-150.0,0.00016289,2]
[353581872,1739934648575,-150.0,0.00016292,2]
[353581873,1739934648585,-12765.4648994,0.00016297,2]
[353581874,1739934648595,-150.0,0.00016298,2]
[353581875,1739934648605,-1000.0,0.00016303,2]
[353581876,1739934648616,-1000.0,0.00016303,2]
[353581877,1739934648626,-150.0,0.00016304,2]
[353581878,1739934648636,-1000.0,0.00016304,2]
[353581879,1739934648646,-16637.45695326,0.00016305,2]
[353581880,1739934648656,-500.0,0.00016307,2]
[353581881,1739934648667,-2000.0,0.00016307,2]
[353581882,1739934648677,-500.0,0.00016307,2]
[353581883,1739934648686,-500.0,0.00016307,2]
[353581884,1739934648696,-200.0,0.00016307,2]
[353581885,1739934648706,-150.0,0.00016308,2]
[353581886,1739934648716,-150.0,0.0001631,2]
[353581887,1739934648726,-1000.0,0.00016311,2]
[353581888,1739934648737,-150.0,0.00016313,2]
[353581889,1739934648748,-150.0,0.00016316,2]
[353581890,1739934648757,-5000.0,0.00016318,2]
[353581891,1739934648767,-150.0,0.0001632,2]
[353581892,1739934648777,-150.0,0.0001632,2]
[353581893,1739934648787,-1000.0,0.0001632,2]
[353581894,1739934648797,-150.0,0.00016322,2]
[353581895,1739934648806,-25530.9297988,0.00016328,2]
[353581896,1739934648815,-150.0,0.00016335,2]
[353581897,1739934648824,-151.51190342,0.00016338,2]
[353581898,1739934648834,-40025.2128,0.00016338,2]
[353581899,1739934648843,-150.0,0.00016339,2]
[353581900,1739934648853,-1000.0,0.00016339,2]
[353581901,1739934648864,-150.0,0.00016341,2]
[353581902,1739934648873,-150.0,0.00016343,2]
[353581903,1739934648883,-150.0,0.00016343,2]
[353581904,1739934648893,-1000.0,0.00016347,2]
[353581905,1739934648903,-150.0,0.00016348,2]
[353581906,1739934648913,-150.0,0.00016348,2]
[353581907,1739934648923,-1000.0,0.00016348,2]
[353581908,1739934648932,-150.0,0.00016349,2]
[353581909,1739934648942,-1000.0,0.00016357,2]
[353581910,1739934648951,-1000.0,0.0001636,2]
[353581911,1739934648961,-150.0,0.00016361,2]
[353581912,1739934648970,-150.0,0.00016363,2]
[353581913,1739934648981,-150.0,0.00016365,2]
[353581914,1739934648990,-150.0,0.00016367,2]
[353581915,1739934649000,-150.0,0.00016367,2]
[353581916,1739934649009,-150.0,0.00016369,2]
[353581917,1739934649019,-150.0,0.00016371,2]
[353581918,1739934649030,-150.0,0.00016372,2]
[353581919,1739934649040,-1000.0,0.00016375,2]
[353581920,1739934649050,-150.0,0.00016376,2]
[353581921,1739934649060,-1012.14355145,0.00016376,2]
[353581922,1739934649070,-1000.0,0.00016376,2]
[353581923,1739934649080,-150.0,0.00016379,2]
[353581924,1739934649090,-150.0,0.00016381,2]
[353581925,1739934649101,-150.0,0.00016382,2]
[353581926,1739934649111,-150.0,0.00016384,2]
[353581927,1739934649121,-1000.0,0.00016384,2]
[353581928,1739934649130,-150.0,0.00016385,2]
[353581929,1739934649139,-150.0,0.00016386,2]
[353581930,1739934649149,-150.0,0.00016388,2]
[353581931,1739934649160,-150.0,0.00016389,2]
[353581932,1739934649170,-150.0,0.00016391,2]
[353581933,1739934649180,-150.0,0.00016395,2]
[353581934,1739934649487,-184.86593446,0.000164,2]
[353581935,1739934649498,-1678.0,0.000164,2]
[353581936,1739934649511,-1000.0,0.00016402,2]
[353581937,1739934649523,-375.0,0.00016406,2]
[353581938,1739934649534,-12765.4648994,0.00016408,2]
[353581939,1739934649548,-1008.30274156,0.00016413,2]
[353581940,1739934649559,-150.0,0.00016414,2]
[353581941,1739934649571,-150.0,0.00016416,2]
[353581942,1739934649583,-12765.4648994,0.00016417,2]
[353581943,1739934649596,-1000.0,0.00016418,2]
[353581944,1739934649608,-569.0,0.0001642,2]
[353581945,1739934649619,-1787.0,0.0001642,2]
[353581946,1739934649630,-784.0,0.0001642,2]
[353581947,1739934649640,-556.891,0.0001642,2]
[353581948,1739934649651,-685.519,0.0001642,2]
[353581949,1739934649661,-1000.0,0.0001642,2]
[353581950,1739934649671,-1000.0,0.00016424,2]
[353581951,1739934649681,-150.0,0.00016427,2]
[353581952,1739934649692,-3192.2010142,0.00016427,2]
[353581953,1739934649702,-10681.2313027,0.00016427,2]
[353581954,1739934649713,-512.79003185,0.00016427,2]
[353581955,1739934649725,-3253.2621847,0.00016427,2]
[353581956,1739934649740,-1789.7442389,0.00016427,2]
[353581957,1739934649751,-1456.7272094,0.00016427,2]
[353581958,1739934649761,-225.2587149,0.00016427,2]
[353581959,1739934649771,-1804.4581938,0.00016427,2]
[353581960,1739934649783,-268074.762887,0.00016428,2]
[353581961,1739934649792,-129865.436723,0.00016428,2]
[353581962,1739934649802,-150.0,0.00016429,2]
[353581963,1739934649811,-150.0,0.00016434,2]
[353581964,1739934649821,-182.71,0.00016437,2]
[353581965,1739934649830,-1090.11,0.00016437,2]
[353581966,1739934649839,-500.0,0.00016438,2]
[353581967,1739934649848,-500.0,0.00016438,2]
[353581968,1739934649858,-613.6264334,0.00016438,2]
[353581969,1739934649869,-513.21590407,0.00016438,2]
[353581970,1739934649879,-500.0,0.00016438,2]
[353581971,1739934649890,-500.0,0.00016438,2]
[353581972,1739934649901,-500.0,0.00016438,2]
[353581973,1739934649912,-500.0,0.00016438,2]
[353581974,1739934649922,-500.0,0.00016438,2]
[353581975,1739934649931,-500.0,0.00016438,2]
[353581976,1739934649943,-500.0,0.00016438,2]
[353581977,1739934649955,-500.0,0.00016438,2]
[353581978,1739934649965,-502.65054072,0.00016438,2]
[353581979,1739934649974,-505.46467805,0.00016438,2]
[353581980,1739934649985,-500.0,0.00016438,2]
[353581981,1739934649998,-513.62429986,0.00016438,2]
[353581982,1739934650019,-156.95957319,0.00016438,2]
[353581983,1739934650029,-203.19083641,0.00016438,2]
[353581984,1739934650038,-500.0,0.00016438,2]
[353581985,1739934650048,-500.0,0.00016438,2]
[353581986,1739934650057,-504.06262939,0.00016438,2]
[353581987,1739934650066,-503.16471054,0.00016438,2]
[353581988,1739934650076,-500.0,0.00016438,2]
[353581989,1739934650085,-271.86391101,0.00016438,2]
[353581990,1739934650095,-372.35036038,0.00016438,2]
[353581991,1739934650105,-500.0,0.00016438,2]
[353581992,1739934650115,-500.0,0.00016438,2]
[353581993,1739934650124,-500.0,0.00016438,2]
[353581994,1739934650133,-801.51,0.00016438,2]
[353581995,1739934650144,-237.615782,0.00016438,2]
[353581996,1739934650153,-505.66839369,0.00016438,2]
[353581997,1739934650163,-500.0,0.00016438,2]
[353581998,1739934650172,-500.0,0.00016438,2]
[353581999,1739934650183,-501.18024648,0.00016438,2]
[353582000,1739934650193,-500.0,0.00016438,2]
[353582001,1739934650203,-500.0,0.00016438,2]
[353582002,1739934650213,-1547.170534,0.00016438,2]
[353582003,1739934650223,-500.0,0.00016438,2]
[353582004,1739934650232,-500.0,0.00016438,2]
[353582005,1739934650242,-500.0,0.00016438,2]
[353582006,1739934650252,-500.0,0.00016438,2]
[353582007,1739934650265,-500.0,0.00016438,2]
[353582008,1739934650275,-161.218667,0.00016438,2]
[353582009,1739934650284,-500.0,0.00016438,2]
[353582010,1739934650295,-500.0,0.00016438,2]
[353582011,1739934650306,-574.39,0.00016438,2]
[353582012,1739934650315,-500.0,0.00016438,2]
[353582013,1739934650325,-156.24193,0.00016438,2]
[353582014,1739934650334,-500.0,0.00016438,2]
[353582015,1739934650344,-500.0,0.00016438,2]
[353582016,1739934650355,-500.0,0.00016438,2]
[353582017,1739934650365,-500.0,0.00016438,2]
[353582018,1739934650376,-500.0,0.00016438,2]
[353582019,1739934650386,-887.3,0.00016438,2]
[353582020,1739934650396,-500.0,0.00016438,2]
[353582021,1739934650406,-500.0,0.00016438,2]
[353582022,1739934650416,-502.78739434,0.00016438,2]
[353582023,1739934650425,-500.0,0.00016438,2]
[353582024,1739934650434,-500.0,0.00016438,2]
[353582025,1739934650444,-500.0,0.00016438,2]
[353582026,1739934650454,-2152.526912,0.00016438,2]
[353582027,1739934650464,-500.0,0.00016438,2]
[353582028,1739934650477,-500.0,0.00016438,2]
[353582029,1739934650487,-503.30401874,0.00016438,2]
[353582030,1739934650497,-500.0,0.00016438,2]
[353582031,1739934650508,-500.0,0.00016438,2]
[353582032,1739934650519,-500.0,0.00016438,2]
[353582033,1739934650528,-828.81,0.00016438,2]
[353582034,1739934650538,-500.0,0.00016438,2]
[353582035,1739934650552,-500.0,0.00016438,2]
[353582036,1739934650562,-500.0,0.00016438,2]
[353582037,1739934650571,-500.0,0.00016438,2]
[353582038,1739934650579,-493.52180801,0.00016438,2]
[353582039,1739934650588,-500.0,0.00016438,2]
[353582040,1739934650598,-497.17552274,0.00016438,2]
[353582041,1739934650607,-704.63,0.00016438,2]
[353582042,1739934650616,-500.0,0.00016438,2]
[353582043,1739934650625,-500.0,0.00016438,2]
[353582044,1739934650635,-680.98,0.00016438,2]
[353582045,1739934650645,-500.0,0.00016438,2]
[353582046,1739934650656,-500.0,0.00016438,2]
[353582047,1739934650667,-500.0,0.00016438,2]
[353582048,1739934650677,-502.7744458,0.00016438,2]
[353582049,1739934650687,-776.95,0.00016438,2]
[353582050,1739934650697,-501.19024953,0.00016438,2]
[353582051,1739934650708,-500.0,0.00016438,2]
[353582052,1739934650718,-503.83569361,0.00016438,2]
[353582053,1739934650727,-500.0,0.00016438,2]
[353582054,1739934650738,-500.0,0.00016438,2]
[353582055,1739934650748,-500.0,0.00016438,2]
[353582056,1739934650758,-500.0,0.00016438,2]
[353582057,1739934650768,-500.0,0.00016438,2]
[353582058,1739934650778,-615.46,0.00016438,2]
[353582059,1739934650788,-500.0,0.00016438,2]
[353582060,1739934650798,-521.57,0.00016438,2]
[353582061,1739934650808,-500.0,0.00016438,2]
[353582062,1739934650818,-500.0,0.00016438,2]
[353582063,1739934650827,-500.0,0.00016438,2]
[353582064,1739934650836,-500.0,0.00016438,2]
[353582065,1739934650846,-679.14,0.00016438,2]
[353582066,1739934650855,-679.47,0.00016438,2]
[353582067,1739934650865,-311.00262159,0.00016438,2]
[353582068,1739934650875,-500.0,0.00016438,2]
[353582069,1739934650884,-500.0,0.00016438,2]
[353582070,1739934650894,-500.0,0.00016438,2]
[353582071,1739934650904,-500.0,0.00016438,2]
[353582072,1739934650914,-500.0,0.00016438,2]
[353582073,1739934650924,-500.0,0.00016438,2]
[353582074,1739934650933,-500.0,0.00016438,2]
[353582075,1739934650943,-500.0,0.00016438,2]
[353582076,1739934650953,-562.48,0.00016438,2]
[353582077,1739934650963,-500.0,0.00016438,2]
[353582078,1739934650972,-500.0,0.00016438,2]
[353582079,1739934650982,-500.0,0.00016438,2]
[353582080,1739934650992,-500.0,0.00016438,2]
[353582081,1739934651001,-500.0,0.00016438,2]
[353582082,1739934651011,-500.0,0.00016438,2]